fUST/lending_fUST_20250808
["ID","MTS","AMOUNT","RATE_DAILY","PERIOD"]
[377930662,1754614252144,-698.58295564,0.00023968,2]
[377930664,1754614252154,-1500.0,0.00023968,2]
[377930666,1754614252164,-1000.0,0.00023968,2]
[377930668,1754614252176,-505.22733879,0.00023968,2]
[377930670,1754614252185,-318.63580423,0.00023968,2]
[377930672,1754614252196,-1500.0,0.00023968,2]
[377930674,1754614252206,-1500.0,0.00023968,2]
[377930675,1754614252215,-1000.0,0.00023968,2]
[377930677,1754614252224,-1646.67618749,0.00023968,2]
[377930679,1754614252234,-1500.0,0.00023968,2]
[377930681,1754614252245,-1500.0,0.00023968,2]
[377930683,1754614252255,-503.33346352,0.00023968,2]
[377930685,1754614252265,-500.0,0.00023968,2]
[377930686,1754614252274,-1000.0,0.00023968,2]
[377930688,1754614252283,-1000.0,0.00023968,2]
[377930690,1754614252293,-500.0,0.00023968,2]
[377930692,1754614252302,-657.8,0.00023975,3]
[377930694,1754614252311,-151.0,0.00023975,7]
[377930696,1754614252320,-151.0,0.00023975,7]
[377930698,1754614252330,-151.0,0.00023975,7]
[377930699,1754614252339,-213.478478,0.00023975,7]
[377930701,1754614252349,-213.478478,0.00023975,7]
[377930703,1754614252358,-151.0,0.00023975,7]
[377930705,1754614252367,-256.224555,0.00023975,7]
[377930707,1754614252376,-256.224555,0.00023975,7]
[377930709,1754614252385,-360.0,0.00023977,2]
[377930710,1754614252394,-151.0,0.00024,7]
[377930712,1754614252403,-151.0,0.00024,7]
[377930714,1754614252413,-151.0,0.00024,7]
[377930716,1754614252423,-151.0,0.00024,7]
[377930718,1754614252433,-151.0,0.00024,7]
[377930720,1754614252442,-151.0,0.00024,7]
[377930722,1754614252452,-151.0,0.00024,7]
[377930724,1754614252461,-299.597932,0.00024,7]
[377930725,1754614252470,-299.597932,0.00024,7]
[377930737,1754614252592,-312.16666667,0.00024,7]
[377930739,1754614252602,-231.83071243,0.00024,7]
[377930741,1754614252612,-160.0,0.00024,7]
[377930743,1754614252622,-842.63596909,0.00024,7]
[377930745,1754614252631,-216.52217562,0.00024,7]
[377930747,1754614252641,-527.57568145,0.00024,7]
[377930749,1754614252652,-160.0,0.00024,7]
[377930751,1754614252661,-160.0,0.00024,7]
[377930753,1754614252671,-160.0,0.00024,7]
[377930755,1754614252680,-150.59244816,0.00024071,7]
[377930756,1754614252690,-151.0,0.000241,9]
[377930758,1754614252700,-151.0,0.000241,6]
[377930760,1754614252710,-179.55953,0.00024109,7]
[377930762,1754614252720,-151.0,0.00024109,7]
[377930764,1754614252729,-152.870138,0.00024109,7]
[377930766,1754614252738,-151.0,0.00024109,7]
[377930768,1754614252747,-151.0,0.00024109,7]
[377930769,1754614252758,-555.59487,0.00024109,7]
[377930771,1754614252767,-555.59487,0.00024109,7]
[377930773,1754614252777,-460.0,0.00024109,2]
[377930775,1754614252786,-151.0,0.00024109,7]
[377930777,1754614252796,-151.0,0.00024109,7]
[377930779,1754614252805,-303.18,0.00024109,2]
[377930781,1754614252815,-460.0,0.00024109,2]
[377930783,1754614252824,-473.77,0.00024109,2]
[377930785,1754614252834,-151.0,0.00024109,7]
[377930787,1754614252844,-151.0,0.00024109,7]
[377930789,1754614252854,-460.0,0.00024109,2]
[377930791,1754614252864,-151.0,0.00024109,7]
[377930793,1754614252873,-151.0,0.00024109,7]
[377930795,1754614252883,-460.0,0.00024109,2]
[377930796,1754614252893,-888.39,0.00024109,2]
[377930798,1754614252902,-1321.14,0.00024109,2]
[377930800,1754614252912,-701.29,0.00024109,2]
[377930802,1754614252922,-460.0,0.00024109,2]
[377930804,1754614252931,-1644.58,0.00024109,2]
[377930806,1754614252941,-460.0,0.00024109,2]
[377930808,1754614252951,-460.0,0.00024109,2]
[377930809,1754614252960,-844.8,0.00024109,2]
[377930812,1754614252970,-1304.521677,0.00024109,7]
[377930813,1754614252980,-948.24,0.00024109,2]
[377930815,1754614252990,-1304.521677,0.00024109,7]
[377930817,1754614253000,-460.0,0.00024109,2]
[377930819,1754614253011,-576.25,0.00024109,2]
[377930821,1754614253021,-460.0,0.00024109,2]
[377930823,1754614253030,-460.0,0.00024109,2]
[377930825,1754614253040,-516.59,0.00024109,2]
[377930827,1754614253050,-460.0,0.00024109,2]
[377930829,1754614253059,-812.29,0.00024109,2]
[377930831,1754614253069,-460.0,0.00024109,2]
[377930832,1754614253079,-889.1,0.00024109,2]
[377930834,1754614253089,-619.75,0.00024109,2]
[377930836,1754614253098,-266.82679355,0.00024109,2]
[377930838,1754614253108,-460.0,0.00024109,2]
[377930840,1754614253117,-460.0,0.00024109,2]
[377930842,1754614253127,-460.0,0.00024109,2]
[377930844,1754614253137,-569.68,0.00024109,2]
[377930846,1754614253147,-972.76,0.00024109,2]
[377930848,1754614253158,-576.57,0.00024109,2]
[377930849,1754614253167,-981.75,0.00024109,2]
[377930851,1754614253178,-737.10675791,0.0002413,2]
[377930853,1754614253189,-180.4290834,0.00024152,2]
[377930855,1754614253198,-2500.0,0.00024164,2]
[377930857,1754614253209,-2500.0,0.00024164,2]
[377930859,1754614253219,-159.0,0.00024164,7]
[377930861,1754614253228,-512.0,0.00024168,2]
[377930863,1754614253237,-2149.0,0.00024189,2]
[377930865,1754614253247,-636.0,0.00024189,2]
[377930867,1754614253257,-971.0,0.00024189,2]
[377930869,1754614253267,-408.0,0.00024189,2]
[377930871,1754614253276,-195.07,0.00024189,2]
[377930872,1754614253285,-413.74,0.00024189,2]
[377930874,1754614253295,-151.0,0.00024195,2]
[377930876,1754614253305,-151.0,0.000242,8]
[377930878,1754614253314,-151.0,0.00024244,7]
[377930880,1754614253323,-151.0,0.00024244,7]
[377930882,1754614253333,-151.0,0.00024244,7]
[377930884,1754614253342,-151.0,0.00024244,7]
[377930886,1754614253352,-151.0,0.00024244,7]
[377930888,1754614253361,-151.0,0.00024244,7]
[377930890,1754614253370,-151.0,0.00024244,7]
[377930892,1754614253379,-1500.0,0.00024253,2]
[377930893,1754614253388,-512.0,0.0002428,2]
[377930895,1754614253398,-151.0,0.000243,10]
[377930897,1754614253407,-512.0,0.00024305,2]
[377930899,1754614253418,-657.8,0.00024373,3]
[377930901,1754614253427,-264.655237,0.00024382,2]
[377930903,1754614253436,-460.0,0.00024383,2]
[377930905,1754614253445,-293.57242511,0.00024383,2]
[377930907,1754614253455,-473.77,0.00024383,2]
[377930909,1754614253464,-460.0,0.00024383,2]
[377930911,1754614253474,-460.0,0.00024383,2]
[377930913,1754614253483,-888.39,0.00024383,2]
[377930915,1754614253492,-1321.14,0.00024383,2]
[377930917,1754614253501,-701.29,0.00024383,2]
[377930919,1754614253511,-460.0,0.00024383,2]
[377930921,1754614253521,-1644.58,0.00024383,2]
[377930922,1754614253531,-460.0,0.00024383,2]
[377930924,1754614253540,-460.0,0.00024383,2]
[377930926,1754614253549,-844.8,0.00024383,2]
[377930928,1754614253559,-948.24,0.00024383,2]
[377930930,1754614253568,-460.0,0.00024383,2]
[377930932,1754614253578,-576.25,0.00024383,2]
[377930934,1754614253587,-460.0,0.00024383,2]
[377930936,1754614253597,-460.0,0.00024383,2]
[377930938,1754614253607,-516.59,0.00024383,2]
[377930940,1754614253617,-460.0,0.00024383,2]
[377930942,1754614253627,-812.29,0.00024383,2]
[377930944,1754614253637,-460.0,0.00024383,2]
[377930946,1754614253646,-889.1,0.00024383,2]
[377930948,1754614253656,-619.75,0.00024383,2]
[377930949,1754614253666,-460.0,0.00024383,2]
[377930951,1754614253676,-460.0,0.00024383,2]
[377930953,1754614253685,-460.0,0.00024383,2]
[377930955,1754614253694,-569.68,0.00024383,2]
[377930957,1754614253704,-972.76,0.00024383,2]
[377930959,1754614253714,-576.57,0.00024383,2]
[377930961,1754614253724,-981.75,0.00024383,2]
[377930963,1754614253734,-151.0,0.000244,9]
[377930965,1754614253743,-151.0,0.000244,6]
[377930967,1754614253755,-151.0,0.000244,9]
[377930969,1754614253764,-264.733706,0.00024402,7]
[377930971,1754614253774,-151.0,0.00024402,7]
[377930973,1754614253783,-151.0,0.00024402,7]
[377930975,1754614253793,-151.0,0.00024402,7]
[377930977,1754614253803,-200.0,0.00024422,15]
[377930979,1754614253812,-200.0,0.00024422,15]
[377930981,1754614253822,-200.0,0.00024422,15]
[377930983,1754614253831,-200.0,0.00024422,15]
[377930984,1754614253841,-200.0,0.00024422,15]
[377930986,1754614253851,-200.0,0.00024422,15]
[377930988,1754614253860,-200.0,0.00024422,15]
[377930990,1754614253870,-211.823902,0.00024422,7]
[377930992,1754614253880,-151.0,0.00024422,7]
[377930994,1754614253890,-211.823902,0.00024422,7]
[377930996,1754614253900,-151.0,0.00024422,7]
[377930998,1754614253909,-151.0,0.00024422,7]
[377931000,1754614253919,-658.141,0.00024448,7]
[377931002,1754614253930,-178.842,0.00024448,7]
[377931004,1754614253939,-512.0,0.00024451,2]
[377931006,1754614253949,-512.0,0.00024455,2]
[377931008,1754614253959,-539.2,0.00024491,2]
[377931010,1754614253968,-155.74,0.00024491,2]
[377931012,1754614253978,-2000.0,0.00024516,2]
[377931014,1754614253988,-1548.31578364,0.00024516,2]
[377931016,1754614253998,-2000.0,0.00024516,2]
[377931018,1754614254009,-2000.0,0.00024516,2]
[377931019,1754614254019,-2000.0,0.00024516,2]
[377931021,1754614254029,-460.0,0.00024525,2]
[377931023,1754614254039,-500.0,0.00024526,5]
[377931025,1754614254048,-237.564252,0.00024557,7]
[377931027,1754614254058,-237.564252,0.00024557,7]
[377931029,1754614254068,-151.0,0.00024557,7]
[377931031,1754614254078,-151.0,0.00024557,7]
[377931033,1754614254087,-353.228551,0.00024557,7]
[377931035,1754614254097,-151.0,0.00024557,7]
[377931037,1754614254107,-151.0,0.00024557,7]
[377931039,1754614254117,-604.580499,0.00024557,7]
[377931041,1754614254127,-604.580499,0.00024557,7]
[377931043,1754614254137,-264.655237,0.0002459,7]
[377931045,1754614254148,-5888.0,0.000246,2]
[377931047,1754614254158,-300.0,0.000246,2]
[377931049,1754614254167,-151.0,0.000246,10]
[377931051,1754614254180,-500.0,0.0002461,2]
[377931053,1754614254190,-240417.2170406,0.0002462,7]
[377931055,1754614254200,-151.0,0.0002462,7]
[377931057,1754614254209,-151.0,0.0002462,7]
[377931059,1754614254218,-151.0,0.0002462,7]
[377931060,1754614254227,-151.0,0.0002462,7]
[377931062,1754614254238,-151.0,0.0002462,7]
[377931064,1754614254248,-151.0,0.0002462,7]
[377931066,1754614254258,-151.0,0.0002462,7]
[377931068,1754614254268,-151.0,0.0002462,7]
[377931070,1754614254277,-299.597932,0.0002462,7]
[377931072,1754614254286,-151.0,0.0002462,7]
[377931074,1754614254296,-299.597932,0.0002462,7]
[377931076,1754614254306,-151.0,0.0002462,7]
[377931078,1754614254315,-151.0,0.0002462,7]
[377931080,1754614254325,-151.0,0.0002462,7]
[377931082,1754614254335,-151.0,0.0002462,7]
[377931084,1754614254345,-1304.521677,0.0002462,7]
[377931086,1754614254355,-213.478478,0.0002462,7]
[377931088,1754614254365,-1304.521677,0.0002462,7]
[377931090,1754614254375,-213.478478,0.0002462,7]
[377931092,1754614254385,-151.0,0.0002462,7]
[377931094,1754614254395,-256.224555,0.0002462,7]
[377931096,1754614254405,-256.224555,0.0002462,7]
[377931098,1754614254414,-211.823902,0.0002462,7]
[377931100,1754614254424,-151.0,0.0002462,7]
[377931101,1754614254434,-211.823902,0.0002462,7]
[377931102,1754614254443,-151.0,0.0002462,7]
[377931103,1754614254453,-151.0,0.0002462,7]
[377931104,1754614254462,-512.0,0.00024631,2]
[377931105,1754614254471,-503.62307387,0.0002465,2]
[377931106,1754614254480,-133002.86150211,0.0002465,2]
[377931107,1754614254629,-205514.90601126,0.0002465,2]
[377931108,1754614254638,-151.0,0.0002465,7]
[377931109,1754614254647,-151.0,0.0002465,7]
[377931110,1754614254656,-221.931224,0.0002465,7]
[377931111,1754614254665,-151.0,0.0002465,7]
[377931112,1754614254674,-245.0,0.0002465,7]
[377931113,1754614254684,-151.0,0.0002465,7]
[377931114,1754614254693,-151.0,0.0002465,7]
[377931115,1754614254702,-182.172375,0.0002465,7]
[377931116,1754614254712,-237.564252,0.0002465,7]
[377931117,1754614254721,-237.564252,0.0002465,7]
[377931118,1754614254729,-151.0,0.0002465,7]
[377931119,1754614254738,-151.0,0.0002465,7]
[377931120,1754614254747,-353.228551,0.0002465,7]
[377931121,1754614254758,-353.228551,0.0002465,7]
[377931122,1754614254768,-151.0,0.0002465,7]
[377931123,1754614254778,-151.0,0.0002465,7]
[377931124,1754614254787,-151.0,0.0002465,7]
[377931125,1754614254796,-151.0,0.0002465,7]
[377931126,1754614254806,-257.194848,0.0002465,7]
[377931127,1754614254815,-563.501054,0.0002465,7]
[377931128,1754614254825,-151.0,0.0002465,7]
[377931129,1754614254834,-153.027435,0.0002465,7]
[377931130,1754614254843,-151.0,0.0002465,7]
[377931131,1754614254853,-151.0,0.0002465,7]
[377931132,1754614254862,-604.580499,0.0002465,7]
[377931133,1754614254872,-555.59487,0.0002465,7]
[377931134,1754614254883,-604.580499,0.0002465,7]
[377931135,1754614254891,-555.59487,0.0002465,7]
[377931136,1754614254901,-151.0,0.0002465,7]
[377931137,1754614254910,-151.0,0.0002465,7]
[377931138,1754614254919,-151.0,0.0002465,7]
[377931139,1754614254929,-151.0,0.0002465,7]
[377931140,1754614254939,-151.0,0.0002465,7]
[377931141,1754614254948,-225.373216,0.0002465,7]
[377931142,1754614254958,-151.0,0.0002465,7]
[377931143,1754614254967,-151.0,0.0002465,7]
[377931145,1754614254976,-151.0,0.0002465,7]
[377931146,1754614254986,-299.597932,0.0002465,7]
[377931148,1754614254996,-155.772803,0.0002465,7]
[377931149,1754614255008,-299.597932,0.0002465,7]
[377931151,1754614255018,-151.0,0.0002465,7]
[377931153,1754614255028,-151.0,0.0002465,7]
[377931155,1754614255038,-151.0,0.0002465,7]
[377931157,1754614255048,-1304.521677,0.0002465,7]
[377931159,1754614255058,-213.478478,0.0002465,7]
[377931162,1754614255068,-1304.521677,0.0002465,7]
[377931163,1754614255077,-213.478478,0.0002465,7]
[377931165,1754614255087,-151.0,0.0002465,7]
[377931167,1754614255096,-256.224555,0.0002465,7]
[377931169,1754614255105,-256.224555,0.0002465,7]
[377931171,1754614255115,-211.823902,0.0002465,7]
[377931173,1754614255125,-151.0,0.0002465,7]
[377931175,1754614255135,-230.404378,0.0002465,7]
[377931177,1754614255146,-211.823902,0.0002465,7]
[377931180,1754614255157,-181.916665,0.0002465,7]
[377931181,1754614255167,-460.0,0.00024657,2]
[377931183,1754614255178,-473.77,0.00024657,2]
[377931185,1754614255188,-460.0,0.00024657,2]
[377931187,1754614255199,-460.0,0.00024657,2]
[377931189,1754614255208,-888.39,0.00024657,2]
[377931191,1754614255217,-1321.14,0.00024657,2]
[377931193,1754614255226,-701.29,0.00024657,2]
[377931195,1754614255236,-460.0,0.00024657,2]
[377931197,1754614255246,-1644.58,0.00024657,2]
[377931199,1754614255256,-460.0,0.00024657,2]
[377931201,1754614255265,-460.0,0.00024657,2]
[377931203,1754614255275,-844.8,0.00024657,2]
[377931217,1754614255404,-948.24,0.00024657,2]
[377931219,1754614255415,-460.0,0.00024657,2]
[377931221,1754614255425,-576.25,0.00024657,2]
[377931223,1754614255435,-460.0,0.00024657,2]
[377931225,1754614255444,-460.0,0.00024657,2]
[377931227,1754614255454,-516.59,0.00024657,2]
[377931229,1754614255463,-460.0,0.00024657,2]
[377931231,1754614255473,-812.29,0.00024657,2]
[377931233,1754614255482,-460.0,0.00024657,2]
[377931235,1754614255492,-889.1,0.00024657,2]
[377931237,1754614255502,-619.75,0.00024657,2]
[377931239,1754614255511,-460.0,0.00024657,2]
[377931241,1754614255521,-460.0,0.00024657,2]
[377931243,1754614255531,-460.0,0.00024657,2]
[377931245,1754614255540,-569.68,0.00024657,2]
[377931247,1754614255549,-972.76,0.00024657,2]
[377931249,1754614255559,-576.57,0.00024657,2]
[377931251,1754614255568,-981.75,0.00024657,2]
[377931253,1754614255577,-151.0,0.00024658,7]
[377931255,1754614255586,-151.0,0.00024658,7]
[377931257,1754614255598,-151.0,0.00024658,7]
[377931259,1754614255607,-151.0,0.00024658,7]
[377931261,1754614255616,-380.0,0.00024658,2]
[377931263,1754614255625,-200.0,0.00024658,15]
[377931265,1754614255635,-264.655237,0.00024658,15]
[377931267,1754614255645,-500.0,0.00024658,2]
[377931269,1754614255654,-151.0,0.00024658,2]
[377931271,1754614255663,-151.0,0.00024658,2]
[377931273,1754614255673,-195.37255031,0.00024658,2]
[377931275,1754614255682,-150.0,0.00024673,2]
[377931277,1754614255691,-500.0,0.00024673,2]
[377931279,1754614255701,-218.05065774,0.00024673,2]
[377931281,1754614255710,-500.0,0.00024673,2]
[377931283,1754614255720,-500.0,0.00024673,2]
[377931285,1754614255730,-500.0,0.00024673,2]
[377931287,1754614255739,-500.4151272,0.00024673,2]
[377931289,1754614255749,-150.0,0.00024673,2]
[377931291,1754614255758,-500.88405749,0.00024673,2]
[377931293,1754614255768,-150.0,0.00024673,2]
[377931295,1754614255777,-500.0,0.00024673,2]
[377931297,1754614255786,-150.0,0.00024673,2]
[377931299,1754614255796,-2162.41243546,0.00024673,2]
[377931301,1754614255806,-737.10675791,0.000247,2]
[377931303,1754614255815,-2500.0,0.00024712,2]
[377931304,1754614255826,-3000.0,0.00024712,2]
[377931307,1754614255836,-512.0,0.00024732,2]
[377931309,1754614255846,-512.0,0.00024763,2]
[377931311,1754614255855,-657.8,0.0002477,3]
[377931312,1754614255865,-151.3335,0.00024776,2]
[377931314,1754614255875,-172.289034,0.000248,7]
[377931317,1754614255885,-151.0,0.000248,7]
[377931318,1754614255895,-151.0,0.000248,7]
[377931320,1754614255904,-237.564252,0.000248,7]
[377931322,1754614255914,-237.564252,0.000248,7]
[377931324,1754614255923,-151.0,0.000248,7]
[377931326,1754614255933,-151.0,0.000248,7]
[377931328,1754614255942,-353.228551,0.000248,7]
[377931330,1754614255951,-353.228551,0.000248,7]
[377931332,1754614255961,-875.36040358,0.000248,2]
[377931334,1754614255971,-264.655237,0.000248,14]
[377931336,1754614255981,-151.0,0.000248,7]
[377931338,1754614255991,-3497.94017272,0.000248,2]
[377931340,1754614256004,-299.597932,0.000248,7]
[377931342,1754614256019,-299.597932,0.000248,7]
[377931344,1754614256029,-151.0,0.000248,7]
[377931346,1754614256039,-151.0,0.000248,7]
[377931348,1754614256050,-151.0,0.000248,7]
[377931351,1754614256060,-1304.521677,0.000248,7]
[377931353,1754614256070,-213.478478,0.000248,7]
[377931355,1754614256080,-1304.521677,0.000248,7]
[377931357,1754614256090,-213.478478,0.000248,7]
[377931358,1754614256100,-151.0,0.000248,7]
[377931360,1754614256110,-256.224555,0.000248,7]
[377931362,1754614256119,-256.224555,0.000248,7]
[377931364,1754614256130,-14690.61881712,0.000248,2]
[377931366,1754614256140,-1500.0,0.000248,14]
[377931368,1754614256152,-1500.0,0.000248,14]
[377931371,1754614256166,-1500.0,0.000248,14]
[377931373,1754614256177,-1500.0,0.000248,14]
[377931375,1754614256187,-1500.0,0.000248,14]
[377931376,1754614256198,-1500.0,0.000248,14]
[377931378,1754614256208,-1064.481526,0.000248,14]
[377931380,1754614256218,-211.823902,0.000248,7]
[377931383,1754614256230,-151.0,0.000248,7]
[377931385,1754614256239,-211.823902,0.000248,7]
[377931387,1754614256248,-371.89673994,0.000249,2]
[377931388,1754614256260,-151.0,0.000249,7]
[377931391,1754614256270,-151.0,0.000249,7]
[377931392,1754614256280,-151.0,0.000249,7]
[377931394,1754614256289,-151.0,0.000249,7]
[377931396,1754614256299,-237.564252,0.000249,7]
[377931398,1754614256309,-237.564252,0.000249,7]
[377931400,1754614256320,-151.0,0.000249,7]
[377931402,1754614256329,-153.587396,0.000249,7]
[377931404,1754614256339,-151.0,0.000249,7]
[377931406,1754614256348,-563.501054,0.000249,7]
[377931408,1754614256359,-151.0,0.000249,7]
[377931410,1754614256369,-217.997612,0.000249,7]
[377931412,1754614256378,-604.580499,0.000249,7]
[377931414,1754614256388,-555.59487,0.000249,7]
[377931416,1754614256398,-604.580499,0.000249,7]
[377931418,1754614256407,-555.59487,0.000249,7]
[377931420,1754614256417,-264.27894,0.000249,7]
[377931422,1754614256426,-151.0,0.000249,7]
[377931424,1754614256436,-151.0,0.000249,7]
[377931426,1754614256445,-151.0,0.000249,7]
[377931428,1754614256455,-151.0,0.000249,7]
[377931430,1754614256465,-151.0,0.000249,7]
[377931432,1754614256475,-299.597932,0.000249,7]
[377931434,1754614256485,-299.597932,0.000249,7]
[377931436,1754614256495,-151.0,0.000249,7]
[377931438,1754614256504,-151.0,0.000249,7]
[377931440,1754614256516,-151.0,0.000249,7]
[377931442,1754614256527,-37576.33171147,0.000249,2]
[377931469,1754614256782,-8486.80327,0.000249,2]
[377931488,1754614256959,-460.0,0.00021917,2]
[377931490,1754614256969,-460.0,0.00022191,2]
[377931492,1754614256980,-151.0,0.00022826,2]
[377931494,1754614256990,-151.0,0.00022826,2]
[377931496,1754614257000,-151.0,0.00022826,2]
[377931498,1754614257013,-151.0,0.00022826,2]
[377931500,1754614257023,-151.0,0.00022826,2]
[377931502,1754614257034,-3618.44319726,0.000249,2]
[377931504,1754614257050,-541.45813142,0.000249,2]
[377931524,1754614257247,-1640.369816,0.000249,2]
[377931533,1754614257380,-460.0,0.00022465,2]
[377931535,1754614257390,-460.0,0.00022739,2]
[377931537,1754614257399,-460.0,0.00023013,2]
[377931539,1754614257412,-150.0,0.00024189,2]
[377931541,1754614257421,-5161.77743207,0.000249,2]
[377931544,1754614257433,-271.98304029,0.000249,2]
[377933874,1754614309683,10000.0,0.0002148,2]
[377933875,1754614317236,10000.0,0.0002148,2]
[377933876,1754614323958,10000.0,0.0002148,2]
[377933877,1754614325785,158.0,0.000214,2]
[377933879,1754614326544,158.0,0.000214,2]
[377933880,1754614332602,10000.0,0.0002148,2]
[377933881,1754614341066,10000.0,0.0002148,2]
[377933882,1754614345434,161.600369,0.00013699,2]
[377933883,1754614346244,158.0,0.00028,30]
[377933884,1754614348405,10000.0,0.0002148,2]
[377933886,1754614353846,158.0,0.00028,30]
[377933887,1754614356746,10000.0,0.0002148,2]
[377933888,1754614369081,10000.0,0.0002148,2]
[377933889,1754614381768,10000.0,0.0002148,2]
[377933890,1754614391533,10000.0,0.0002148,2]
[377933893,1754614426060,155.0,0.000301,120]
[377933894,1754614439452,158.0,0.000301,120]
[377933895,1754614454759,158.0,0.000214,3]
[377933896,1754614456678,158.0,0.000214,3]
[377933907,1754614957621,1000.0,0.00031933,30]
[377933908,1754614958222,1000.0,0.00031933,30]
[377933909,1754614958802,1000.0,0.00031933,30]
[377933910,1754614959471,1000.0,0.00031933,30]
[377933911,1754614960057,1000.0,0.00031933,30]
[377933912,1754614960781,1408.369,0.00031933,30]
[377933915,1754615033879,24900.0,0.00020952,2]
[377933921,1754615109120,500.0,0.0002148,2]
[377934005,1754615436303,161.600369,0.00013699,2]
[377934109,1754615442325,-205.12868769,0.00021717,2]
[377934111,1754615442338,-1200.0,0.00021812,2]
[377934113,1754615442351,-300.0,0.00021812,2]
[377934116,1754615442363,-200.0,0.00021812,2]
[377934118,1754615442376,-300.0,0.00021812,2]
[377934120,1754615442392,-1200.0,0.00021812,2]
[377934121,1754615442407,-5000.0,0.00021813,2]
[377934124,1754615442419,-5000.0,0.00021813,4]
[377934126,1754615442437,-5000.0,0.00021813,3]
[377934128,1754615442448,-5000.0,0.00021813,5]
[377934130,1754615442460,-500.0,0.00021815,2]
[377934132,1754615442472,-150.0,0.00021816,2]
[377934134,1754615442484,-9288.27885834,0.00021817,2]
[377934136,1754615442497,-2000.0,0.00021817,2]
[377934138,1754615442513,-2000.0,0.00021817,2]
[377934141,1754615442524,-2000.0,0.00021817,2]
[377934143,1754615442535,-2000.0,0.00021817,2]
[377934145,1754615442549,-207.64,0.00021817,2]
[377934147,1754615442562,-151.0,0.00021904,2]
[377934149,1754615442574,-667.48,0.00021907,3]
[377934151,1754615442586,-1127.65,0.00021907,10]
[377934153,1754615442601,-939.71,0.00021907,10]
[377934156,1754615442613,-783.09,0.00021907,10]
[377934157,1754615442624,-400.44860574,0.00021911,2]
[377934159,1754615442635,-500.0,0.00021911,2]
[377934161,1754615442646,-500.0,0.00021911,2]
[377934163,1754615442661,-500.0,0.00021911,2]
[377934165,1754615442672,-500.0,0.00021911,2]
[377934167,1754615442684,-500.0,0.00021911,2]
[377934170,1754615442696,-171.69079504,0.00021911,2]
[377934171,1754615442706,-500.0,0.00021911,2]
[377934173,1754615442717,-500.0,0.00021911,2]
[377934175,1754615442729,-500.0,0.00021911,2]
[377934177,1754615442740,-500.0,0.00021911,2]
[377934179,1754615442751,-500.0,0.00021911,2]
[377934182,1754615442763,-500.0,0.00021911,2]
[377934184,1754615442773,-500.0,0.00021911,2]
[377934186,1754615442785,-500.0,0.00021911,2]
[377934188,1754615442796,-490.53983076,0.00021911,2]
[377934190,1754615442807,-500.0,0.00021911,2]
[377934192,1754615442818,-500.0,0.00021911,2]
[377934194,1754615442829,-500.0,0.00021911,2]
[377934196,1754615442840,-579.01076008,0.00021911,2]